bitfinex-derivatives/quotes_BNBF0:USTF0_20250406
["timestamp","ask_amount","ask_price","bid_price","bid_amount"]
[1743945614270,0.57851028,585.27,584.53,0.2827588]
[1743945614570,0.643,585.29,584.53,0.2827588]
[1743945614771,0.5786939,585.28,584.53,0.2827588]
[1743945614971,0.5786939,585.27,584.53,0.2827588]
[1743945615172,0.643,585.29,584.53,0.2827588]
[1743945615368,0.57869556,585.28,584.53,0.2827588]
[1743945615573,0.57869556,585.27,584.53,0.2827588]
[1743945615771,0.57869556,585.26,584.53,0.2827588]
[1743945615970,0.57875086,585.25,584.53,0.2827588]
[1743945616173,0.643,585.29,584.53,0.2827588]
[1743945616475,0.57878014,585.28,584.52,1.27902258]
[1743945616677,0.57878014,585.27,584.53,0.28274512]
[1743945616974,0.57878476,585.26,584.53,0.28274512]
[1743945617178,0.57878476,585.25,584.53,0.28274512]
[1743945617378,0.643,585.29,584.53,0.28274512]
[1743945617574,0.57882526,585.28,584.53,0.28274512]
[1743945617773,0.57882526,585.27,584.53,0.28274512]
[1743945617974,0.57882526,585.26,584.53,0.28274512]
[1743945618173,0.643,585.29,584.52,1.27902258]
[1743945618374,0.643,585.29,584.53,0.28273516]
[1743945618574,0.57891839,585.28,584.53,0.28273516]
[1743945618773,0.643,585.29,584.53,0.28273516]
[1743945618774,0.57888544,585.27,584.53,0.28273516]
[1743945618973,0.57888544,585.26,584.47,0.28273516]
[1743945619178,0.57888544,585.25,584.48,0.28273516]
[1743945619381,0.643,585.29,584.49,0.28273516]
[1743945619683,0.57891487,585.28,584.5,0.28273516]
[1743945619878,0.57891487,585.27,584.5,0.28273516]
[1743945620079,0.57891487,585.26,584.51,0.28273516]
[1743945620280,0.57891487,585.25,584.47,0.28273516]
[1743945620476,0.643,585.29,584.47,0.28273516]
[1743945620682,0.57899394,585.28,584.47,0.28273516]
[1743945620883,0.57899394,585.27,584.47,0.28273516]
[1743945621082,0.57899394,585.26,584.47,1.56175774]
[1743945621280,0.643,585.29,584.48,0.28273516]
[1743945621483,0.57900907,585.28,584.49,0.28274163]
[1743945621684,0.57900907,585.27,584.48,0.28274163]
[1743945621883,0.57900907,585.26,584.5,0.28274163]
[1743945622083,0.643,585.29,584.47,1.27902258]
[1743945622282,0.5790011,585.28,584.48,0.28274166]
[1743945622478,0.5790011,585.27,584.48,0.28274166]
[1743945622684,0.57899999,585.26,584.48,1.56176424]
[1743945622883,0.57899999,585.25,584.49,0.28274166]
[1743945623082,0.643,585.29,584.49,0.28274166]
[1743945623286,0.57916569,585.28,584.49,0.28274166]
[1743945623587,0.57916569,585.27,584.49,0.28274166]
[1743945623784,0.57916569,585.26,584.49,0.28274166]
[1743945624088,0.643,585.29,584.49,0.28274166]
[1743945624279,0.57917353,585.28,584.49,0.28274166]
[1743945624481,0.643,585.29,584.5,0.28274166]
[1743945624785,0.643,585.29,584.51,0.28274166]
[1743945624988,0.643,585.29,584.43,0.28274166]
[1743945625181,0.643,585.29,584.44,0.28274166]
[1743945625385,0.643,585.29,584.45,0.28274166]
[1743945625585,0.643,585.29,584.44,0.28274166]
[1743945625987,0.57915279,585.28,584.44,0.28274166]
[1743945626285,0.643,585.29,584.44,0.28274166]
[1743945626486,0.5791471,585.28,584.44,0.28274166]
[1743945626686,0.643,585.29,584.44,0.28274166]
[1743945626888,0.57913943,585.28,584.44,0.28274166]
[1743945627086,0.57913943,585.27,584.44,0.28274166]
[1743945627285,0.643,585.29,584.44,0.28274166]
[1743945627587,0.57911133,585.28,584.44,1.56176424]
[1743945627784,0.57911133,585.27,584.45,0.28274166]
[1743945627985,0.643,585.29,584.45,0.28274166]
[1743945628187,0.57912129,585.28,584.44,1.27902258]
[1743945628382,0.57912129,585.27,584.45,0.28275091]
[1743945628583,0.643,585.29,584.45,0.28275091]
[1743945628786,0.57910435,585.28,584.45,0.28275091]
[1743945628986,0.57910435,585.27,584.45,0.28275091]
[1743945629186,0.57910435,585.26,584.45,0.28275091]
[1743945629383,0.643,585.29,584.62,1.27902258]
[1743945629585,0.57909414,585.28,584.63,0.28275091]
[1743945629786,0.57909414,585.27,584.62,1.27902258]
[1743945629984,0.643,585.29,584.63,0.28275457]
[1743945630189,0.57909975,585.28,584.63,0.28275457]
[1743945630382,0.57909975,585.27,584.63,0.28275457]
[1743945630583,0.57909076,585.26,584.63,0.28275457]
[1743945630789,0.57906003,585.25,584.63,0.28275457]
[1743945630983,0.57906003,585.24,584.63,0.28275457]
[1743945631183,0.57906003,585.23,584.63,0.28275457]
[1743945631384,0.643,585.29,584.63,0.28275457]
[1743945631691,0.57902501,585.28,584.55,1.27902258]
[1743945631890,0.57902501,585.27,584.56,0.28279581]
[1743945632083,0.57902501,585.26,584.56,0.28279581]
[1743945632288,0.57902501,585.25,584.56,0.28279581]
[1743945632589,0.57902501,585.24,584.55,1.27902258]
[1743945632786,0.57902501,585.23,584.56,0.28279397]
[1743945632984,0.57892657,585.22,584.56,0.28279397]
[1743945633187,0.57892657,585.21,584.56,0.28279397]
[1743945633483,0.57892657,585.2,584.55,1.27902258]
[1743945633685,0.57892657,585.19,584.55,1.27902258]
[1743945633992,0.57892657,585.18,584.53,1.27902258]
[1743945634191,0.57892657,585.17,584.53,1.27902258]
[1743945634489,0.57892657,585.16,584.53,1.27902258]
[1743945634788,0.57892657,585.15,584.53,1.27902258]
[1743945634988,0.643,585.29,584.53,1.27902258]
[1743945635189,0.57872407,585.28,584.53,1.27902258]
[1743945635393,0.57872407,585.27,584.53,1.27902258]
[1743945635594,0.57872407,585.26,584.53,1.27902258]
[1743945635794,0.57872407,585.25,584.53,1.27902258]
[1743945635990,0.57872407,585.24,584.53,1.27902258]
[1743945636193,0.57872407,585.23,584.53,1.27902258]
[1743945636391,0.57872407,585.22,584.53,1.27902258]
[1743945636591,0.57872407,585.21,584.53,1.27902258]
[1743945636797,0.57872407,585.2,584.18,1.27902258]
[1743945636998,0.57872407,585.19,584.18,1.27902258]
[1743945637294,0.57872407,585.18,584.18,1.27902258]
[1743945637499,0.57872407,585.17,584.18,1.27902258]
[1743945637698,0.57872407,585.16,584.18,1.27902258]
[1743945637898,0.57872407,585.15,584.18,1.27902258]
[1743945638098,0.57872407,585.14,584.19,0.28286118]
[1743945638398,0.57872407,585.13,584.19,0.28286118]
[1743945638693,0.57872407,585.12,584.19,0.28286118]
[1743945638898,0.57872407,585.11,584.19,0.28286118]
[1743945639100,0.57872407,585.21,584.19,0.28286118]
[1743945639301,0.658,585.1,584.19,0.28286118]
[1743945639499,0.658,585.1,584.1,0.28286118]
[1743945639800,0.658,585.1,584.11,0.62526278]
[1743945639997,0.658,585.1,584.12,0.28286152]
[1743945640703,0.658,585.1,584.13,0.34238953]
[1743945640896,0.658,585.1,584.14,0.28286152]
[1743945641105,0.658,585.1,584.27,1.27902258]
[1743945641296,0.658,585.1,584.28,0.28286152]
[1743945642202,0.658,585.1,584.29,0.28286146]
[1743945642399,0.658,585.1,584.28,0.28286146]
[1743945642600,0.658,585.1,584.3,0.28286146]
[1743945642801,0.658,585.1,584.31,0.28286146]
[1743945643102,0.658,585.1,584.32,0.28286146]
[1743945643301,0.658,585.1,584.18,0.28286146]
[1743945643603,0.658,585.1,584.19,0.28286146]
[1743945643794,0.658,585.1,584.18,0.28286146]
[1743945645400,0.658,585.1,584.19,0.34235437]
[1743945645600,0.658,585.1,584.2,0.28286146]
[1743945645798,0.658,585.1,584.21,0.34234265]
[1743945645999,0.658,585.1,584.22,0.28286146]
[1743945646299,0.658,585.1,584.23,0.34233093]
[1743945646498,0.658,585.1,584.24,0.28286146]
[1743945646702,0.658,585.1,584.25,0.62518067]
[1743945646904,0.658,585.1,584.26,0.62517481]
[1743945647098,0.658,585.1,584.27,0.62516895]
[1743945647300,0.658,585.1,584.28,0.28286146]
[1743945647503,0.658,585.1,584.29,0.28286146]
[1743945647702,0.658,585.1,584.3,0.28286146]
[1743945647902,0.658,585.1,584.31,0.28286146]
[1743945648104,0.658,585.1,584.27,0.34230749]
[1743945648404,0.658,585.1,584.35,1.27902258]
[1743945648603,0.658,585.1,584.36,0.28278724]
[1743945649605,0.658,585.1,584.35,1.27902258]
[1743945649801,0.658,585.1,584.36,0.28278374]
[1743945650704,0.658,585.1,584.37,1.27902258]
[1743945650904,0.658,585.1,584.38,0.28278374]
[1743945652405,0.29750455,585.28,584.28,0.28278374]
[1743945653003,0.29750455,585.28,584.27,0.34230749]
[1743945653200,0.29750455,585.28,584.28,0.28278009]
[1743945653398,0.29750455,585.28,584.29,0.34229577]
[1743945653603,0.57737742,585.33,584.3,0.28278009]
[1743945653803,0.57737742,585.32,584.3,0.28278009]
[1743945654106,0.57737742,585.31,584.31,0.34228406]
[1743945654404,0.57737742,585.3,584.32,0.28278009]
[1743945654606,0.709,585.3,584.32,0.62505829]
[1743945654805,0.709,585.3,584.33,0.28278009]
[1743945655007,0.709,585.3,584.34,0.28278009]
[1743945655204,0.709,585.3,584.35,0.28278009]
[1743945655402,0.709,585.3,584.36,0.28278009]
[1743945655606,0.709,585.3,584.37,0.28278009]
[1743945655904,0.709,585.3,584.38,0.28278009]
[1743945656105,0.709,585.3,584.32,0.3422782]
[1743945656306,0.709,585.3,584.39,0.28277199]
[1743945656504,0.709,585.3,584.4,0.28277199]
[1743945656702,0.709,585.3,584.41,0.28277199]
[1743945656903,0.709,585.3,584.33,0.28277199]
[1743945657108,0.709,585.3,584.34,0.28277199]
[1743945657406,0.57737742,585.29,584.35,0.28277199]
[1743945657608,0.57737742,585.29,584.46,1.27902258]
[1743945657907,1.00648802,585.3,584.47,0.28277199]
[1743945658303,0.709,585.3,584.47,0.28277199]
[1743945659707,0.709,585.3,584.33,0.28277199]
[1743945661102,0.709,585.3,584.32,0.3422782]
[1743945661406,0.709,585.3,584.33,0.28271684]
[1743945662306,0.709,585.3,584.35,1.27902258]
[1743945662506,0.709,585.3,584.36,0.28271295]
[1743945663907,0.709,585.3,584.35,1.27902258]
[1743945664103,0.709,585.3,584.36,0.28272721]
[1743945664501,0.709,585.3,584.37,0.34224891]
[1743945664809,0.709,585.3,584.38,0.28272721]
[1743945665207,0.709,585.3,584.39,0.3422372]
[1743945665407,0.709,585.3,584.4,0.28272721]
[1743945665602,0.709,585.3,584.41,0.28272477]
[1743945665808,0.709,585.3,584.4,0.28272477]
[1743945666108,0.709,585.3,584.41,0.62495026]
[1743945666301,0.709,585.3,584.42,0.28272684]
[1743945667409,0.709,585.3,584.43,0.28275296]
[1743945667708,0.57828883,585.4,584.44,0.28275296]
[1743945667911,0.57828883,585.39,584.45,0.28275296]
[1743945668204,0.57828883,585.38,584.46,0.28275296]
[1743945668409,0.57822287,585.37,584.42,0.28275296]
[1743945668609,0.57822287,585.36,584.43,0.28275296]
[1743945668808,0.57822287,585.35,584.42,0.28275296]
[1743945669008,0.57822287,585.34,584.43,0.28275296]
[1743945669205,0.57822287,585.33,584.44,0.28275296]
[1743945669407,0.57822287,585.33,584.41,0.34222549]
[1743945669408,0.57822287,585.32,584.45,0.28275296]
[1743945669605,0.57822287,585.31,584.42,0.28275296]
[1743945669806,0.57822287,585.3,584.43,0.28275296]
[1743945670008,0.57822287,585.29,584.42,0.28275296]
[1743945670210,0.57822287,585.31,584.42,0.28275296]
[1743945670511,0.515,585.28,584.43,0.2827764]
[1743945670912,0.515,585.28,584.41,0.34222549]
[1743945670913,0.515,585.28,584.44,0.2827764]
[1743945671107,0.515,585.28,584.42,0.2827764]
[1743945671309,0.515,585.28,584.43,0.2827764]
[1743945671511,0.515,585.28,584.42,0.2827764]
[1743945671711,0.515,585.28,584.43,0.2827764]
[1743945671911,0.515,585.28,584.42,0.2827764]
[1743945672113,0.515,585.28,584.43,0.2827764]
[1743945672306,0.515,585.28,584.44,0.28277154]
[1743945672507,0.515,585.28,584.45,0.28277154]
[1743945672706,0.515,585.28,584.42,0.28277154]
[1743945672908,0.515,585.28,584.43,0.28277154]
[1743945673112,0.515,585.28,584.42,0.28277154]
[1743945675313,0.515,585.28,584.41,0.34222549]
[1743945675510,1.09313001,585.28,584.42,0.28277476]
[1743945675719,0.515,585.28,584.42,0.28277476]
[1743945675917,0.515,585.28,584.5,1.27902258]
[1743945676116,0.515,585.28,584.51,0.28277476]
[1743945676312,1.09313001,585.28,584.51,0.28277476]
[1743945676510,0.515,585.28,584.51,0.28277476]
[1743945676712,0.57813001,585.27,584.51,0.28277476]
[1743945676916,0.515,585.28,584.51,0.28277476]
[1743945677115,0.515,585.28,584.5,1.27902258]
[1743945677312,0.515,585.28,584.51,0.28280641]
[1743945677512,1.09300792,585.28,584.51,0.28280641]
[1743945677715,0.515,585.28,584.51,0.28280641]
[1743945678017,0.29747404,585.27,584.51,0.28280641]
[1743945678215,0.87548196,585.27,584.42,0.28280641]
[1743945678413,0.87548196,585.27,584.43,0.28280641]
[1743945678615,0.87548196,585.27,584.42,0.28280641]
[1743945678918,0.87548196,585.27,584.43,0.28280641]
[1743945679118,0.57800792,585.26,584.44,0.28280641]
[1743945679319,0.57800792,585.26,584.45,0.28280641]
[1743945679520,0.57800792,585.26,584.42,0.28280641]
[1743945679819,0.57800792,585.25,584.43,0.28280641]
[1743945680019,0.57800792,585.24,584.42,0.28280641]
[1743945680220,0.57800792,585.23,584.41,1.62124807]
[1743945680422,0.57800792,585.22,584.42,1.56185705]
[1743945680614,0.57800792,585.27,584.43,0.28283447]
[1743945680815,0.57791302,585.26,584.43,0.28283447]
[1743945681020,0.57791302,585.25,584.42,1.27902258]
[1743945681215,0.57791302,585.24,584.42,1.27902258]
[1743945681417,0.57791302,585.23,584.42,1.27902258]
[1743945681723,0.57791302,585.22,584.43,0.2828667]
[1743945681922,0.57791302,585.21,584.43,0.2828667]
[1743945682218,0.57791302,585.2,584.44,0.28286674]
[1743945682422,0.57791302,585.19,584.42,0.28286674]
[1743945682616,0.57791302,585.18,584.08,1.27902258]
[1743945682817,0.57791302,585.17,584.08,1.27902258]
[1743945683017,0.57791302,585.22,584.09,0.28286469]
[1743945683319,0.57791302,585.21,584.09,0.28286469]
[1743945683519,0.57791302,585.2,584.09,0.28286469]
[1743945683821,0.57791302,585.19,584.09,0.28286469]
[1743945684121,0.57791302,585.18,584.09,0.28286469]
[1743945684321,0.57791302,585.22,584.09,0.28286469]
[1743945684518,0.57791302,585.21,584.09,0.28286469]
[1743945684717,0.57791302,585.2,584.09,0.28286469]
[1743945684918,0.57791302,585.19,584.09,0.28286469]
[1743945685122,0.57791302,585.18,584.09,0.28286469]
[1743945685317,0.57791302,585.17,584.09,0.28286469]
[1743945685522,0.57791302,585.16,584.1,0.28286469]
[1743945685717,0.57791302,585.15,584.11,0.28286469]
[1743945685917,0.57791302,585.22,584.08,0.34241884]
[1743945686123,0.57791302,585.21,584.09,0.28285111]
[1743945686317,0.57791302,585.2,584.1,0.62525823]
[1743945686517,0.57791302,585.22,584.11,0.62525237]
[1743945686721,0.57791302,585.21,584.12,0.6252465]
[1743945686922,0.57791302,585.22,584.24,1.27902258]
[1743945687117,0.57791302,585.21,584.25,0.28285111]
[1743945687322,0.57791302,585.22,584.25,0.28285111]
[1743945687518,0.57791302,585.21,584.25,0.28285111]
[1743945687724,0.57791302,585.22,584.25,0.28285111]
[1743945688119,0.57791302,585.21,584.25,0.28285111]
[1743945688324,0.57791302,585.22,584.25,0.28285111]
[1743945688526,0.57791302,585.21,584.25,0.28285111]
[1743945688721,0.57791302,585.22,584.26,0.28281467]
[1743945688922,0.57791302,585.21,584.27,0.28281467]
[1743945689125,0.57791302,585.2,584.25,0.28281467]
[1743945689324,0.57791302,585.22,584.26,0.28281467]
[1743945689524,0.57791302,585.21,584.25,0.28281467]
[1743945689726,0.57791302,585.2,584.25,0.28281467]
[1743945689925,0.57791302,585.32,584.23,0.28281467]
[1743945690125,0.57791302,585.31,584.22,1.27902258]
[1743945690322,0.57791302,585.3,584.23,0.28281943]
[1743945690527,0.57791302,585.29,584.24,0.28281943]
[1743945690827,0.57791302,585.28,584.25,0.28281943]
[1743945691024,0.57791302,585.27,584.26,0.28281943]
[1743945691225,0.57791302,585.26,584.27,0.28281943]
[1743945691424,0.57791302,585.25,584.28,0.28281943]
[1743945691621,0.57791302,585.24,584.23,0.28281943]
[1743945691826,0.57791302,585.23,584.24,0.28281943]
[1743945692026,0.57791302,585.28,584.41,1.27902258]
[1743945692223,0.57791302,585.27,584.42,0.28281943]
[1743945692423,0.57791302,585.26,584.42,0.28281943]
[1743945692723,0.57791302,585.25,584.42,0.28281943]
[1743945692926,0.57791302,585.24,584.42,0.28281943]
[1743945693126,0.57791302,585.23,584.42,0.28281943]
[1743945693430,0.57788646,585.22,584.41,1.27902258]
[1743945693624,0.57788646,585.21,584.42,0.28283572]
[1743945693830,0.57788646,585.2,584.42,0.28283572]
[1743945694025,0.57788646,585.21,584.42,0.28283572]
[1743945694429,0.57788646,585.21,584.37,0.28283572]
[1743945694630,0.57788646,585.21,584.38,0.28283572]
[1743945694832,0.29749947,585.22,584.37,0.28283572]
[1743945695631,0.57788646,585.27,584.37,0.28283572]
[1743945695932,0.57788646,585.26,584.37,0.28283572]
[1743945696127,0.57788646,585.25,584.37,0.28283572]
[1743945696431,0.57788646,585.24,584.37,0.28283572]
[1743945696733,0.57788646,585.23,584.37,0.28283572]
[1743945696933,0.57788646,585.22,584.38,0.28283434]
[1743945697130,0.57788646,585.21,584.19,0.28283434]
[1743945697334,0.57788646,585.2,584.2,0.28283434]
[1743945697535,0.57788646,585.19,584.19,0.28283434]
[1743945697737,0.57788646,585.23,584.2,0.28283434]
[1743945697930,0.57788646,585.22,584.19,0.28283434]
[1743945698134,0.57788646,585.21,584.2,0.28283434]
[1743945698334,0.57788646,585.2,584.2,0.28283434]
[1743945698536,0.57788646,585.19,584.21,0.28283434]
[1743945698735,0.57788646,585.18,584.19,0.28283434]
[1743945699033,0.57788646,585.31,584.2,0.28283434]
[1743945699237,0.57788646,585.3,584.13,0.28283434]
[1743945699537,0.57788646,585.29,584.14,0.28283434]
[1743945699832,0.57788646,585.28,584.15,0.28283434]
[1743945700037,0.57788646,585.27,584.12,0.63993174]
[1743945700234,0.57788646,585.26,584.13,0.62522908]
[1743945700436,0.57788646,585.25,584.14,0.62522322]
[1743945700631,0.57788646,585.25,584.12,0.29753635]
[1743945700632,0.57788646,585.24,584.15,0.62521736]
[1743945700840,0.57788646,585.23,584.16,0.28283955]
[1743945701036,0.57788646,585.28,584.16,0.28283955]
[1743945701239,0.57788646,585.27,584.16,0.28283955]
[1743945701437,0.57788646,585.26,584.17,0.28283955]
[1743945701633,0.57788646,585.25,584.18,0.28283955]
[1743945701834,0.57788646,585.24,584.15,0.34237781]
[1743945702035,0.57788646,585.23,584.16,0.28282869]
[1743945702234,0.57788646,585.31,584.17,0.28282869]
[1743945702434,0.57788646,585.3,584.18,0.28282869]
[1743945702634,0.57788646,585.29,584.19,0.28282869]
[1743945702837,0.57788646,585.28,584.37,1.27902258]
[1743945703032,0.57788646,585.27,584.38,0.28282869]
[1743945703233,0.57788646,585.26,584.38,0.28282869]
[1743945703438,0.57788646,585.25,584.37,1.27902258]
[1743945703640,0.57788646,585.24,584.38,0.2828282]
[1743945703838,0.57788646,585.23,584.38,0.2828282]
[1743945704042,0.57788646,585.29,584.38,0.2828282]
[1743945704242,0.57788646,585.28,584.43,1.27902258]
[1743945704442,0.57788646,585.27,584.44,0.2828282]
[1743945704643,0.57788646,585.26,584.44,0.2828282]
[1743945704843,0.57788646,585.25,584.44,0.2828282]
[1743945705042,0.57788646,585.24,584.43,1.27902258]
[1743945705240,0.57788646,585.23,584.43,1.27902258]
[1743945705443,0.57788646,585.22,584.43,1.27902258]
[1743945705639,0.57817228,585.31,584.43,1.27902258]
[1743945705843,0.29749438,585.21,584.43,1.27902258]
[1743945706145,0.575,585.32,584.15,0.34237781]
[1743945706146,0.57817228,585.29,584.15,0.34237781]
[1743945706339,0.57817228,585.28,584.16,0.28282597]
[1743945706543,0.57817228,585.27,584.17,0.34236609]
[1743945706748,0.57817228,585.26,584.18,0.28282597]
[1743945706943,0.57817228,585.25,584.17,0.34236609]
[1743945707147,0.57817228,585.24,584.18,0.28283178]
[1743945707346,0.57817228,585.23,584.18,0.28283178]
[1743945707547,0.57817228,585.22,584.18,0.62519201]
[1743945707750,0.57817228,585.21,584.19,0.28283178]
[1743945707946,0.57817228,585.2,584.19,0.28283178]
[1743945708146,0.57817228,585.19,584.19,0.28283178]
[1743945708349,0.57817228,585.18,584.19,0.28283178]
[1743945708548,0.57817228,585.17,584.2,0.28283193]
[1743945708748,0.57817228,585.16,584.19,0.28283193]
[1743945708945,0.57817228,585.2,584.2,0.28283193]
[1743945709151,0.57817228,585.19,584.19,0.28283193]
[1743945709347,0.57817228,585.18,584.2,0.28283193]
[1743945709547,0.57817228,585.17,584.21,0.28283193]
[1743945709749,0.57817228,585.16,584.19,0.28283193]
[1743945709947,0.57817228,585.2,584.2,0.28283193]
[1743945710152,0.57817228,585.19,584.21,0.28283459]
[1743945710352,0.57817228,585.18,584.19,0.28283459]
[1743945710553,0.57817228,585.17,584.2,0.28283459]
[1743945710855,0.57817228,585.2,584.21,0.28283459]
[1743945711052,0.57817228,585.2,584.18,0.34236023]
[1743945711053,0.57817228,585.19,584.19,0.28283459]
[1743945711252,0.57814914,585.18,584.19,0.28283459]
[1743945711454,0.57814914,585.17,584.19,0.28283459]
[1743945711654,0.57814914,585.2,584.19,0.28283459]
[1743945711856,0.2975478,585.18,584.18,0.34236023]
[1743945712054,0.57814914,585.17,584.19,0.28283154]
[1743945713254,0.57814914,585.17,584.36,1.27902258]
[1743945713654,0.57814914,585.2,584.37,0.28283125]
[1743945713853,0.57814914,585.19,584.37,0.28283125]
[1743945714054,0.574,585.21,584.37,0.28283125]
[1743945714852,0.29751345,585.2,584.37,0.28283125]
[1743945715053,0.29751345,585.2,584.36,1.27902258]
[1743945715354,0.29751345,585.2,584.37,0.28283126]
[1743945716154,0.29751345,585.2,584.42,1.27902258]
[1743945716354,0.29751345,585.2,584.43,0.28283575]
[1743945716955,0.29751345,585.2,584.44,0.28284225]
[1743945717155,0.29751345,585.2,584.43,0.28284225]
[1743945717354,0.29751345,585.2,584.44,0.28284225]
[1743945717556,0.57820678,585.19,584.42,1.27902258]
[1743945717755,0.57820678,585.18,584.42,1.27902258]
[1743945718059,0.57820678,585.17,584.42,1.27902258]
[1743945718254,0.57820678,585.19,584.41,1.27902258]
[1743945718453,0.57820678,585.18,584.41,1.27902258]
[1743945718654,0.57820678,585.17,584.41,1.27902258]
[1743945718956,0.57820678,585.16,584.41,1.27902258]
[1743945719156,0.57820678,585.15,584.41,1.27902258]
[1743945719358,0.57820678,585.14,584.41,1.27902258]
[1743945719656,0.57820678,585.13,584.41,1.27902258]
[1743945719856,0.57820678,585.12,584.41,1.27902258]
[1743945720057,0.57820678,585.11,584.41,1.27902258]
[1743945720256,0.57820678,585.1,584.41,1.27902258]
[1743945720456,0.57820678,585.09,584.41,1.27902258]
[1743945720756,0.57820678,585.08,584.41,1.27902258]
[1743945720957,0.57820678,585.07,584.41,1.27902258]
[1743945721158,0.57820678,585.06,584.41,1.27902258]
[1743945721354,0.57819335,585.05,584.41,1.27902258]
[1743945721551,0.57819335,585.04,584.41,1.27902258]
[1743945721752,0.57819335,585.03,584.41,1.27902258]
[1743945721956,0.57819335,585.02,584.01,1.27902258]
[1743945722156,0.57819335,585.01,584.02,0.28299037]
[1743945722452,0.57819335,585.0,584.02,0.28299037]
[1743945722656,0.57819335,584.99,584.02,0.28299037]
[1743945722856,0.57819335,584.98,584.02,0.28299037]
[1743945723050,0.57819335,584.97,584.02,0.28299037]
[1743945723252,0.57819335,584.96,584.02,0.28299037]
[1743945723453,0.57819335,584.95,584.02,0.28299037]
[1743945723755,0.57819335,584.94,584.02,0.28299037]
[1743945723956,0.57819335,584.93,584.02,0.28299037]
[1743945724154,0.57819335,584.99,583.81,0.28299037]
[1743945724457,0.57819335,584.98,583.82,0.34257134]
[1743945724658,0.57819335,584.97,583.82,0.34257134]
[1743945724854,0.92009706,584.96,583.83,0.28299037]
[1743945725054,0.92010291,584.95,583.83,0.28299037]
[1743945725361,0.57819335,584.94,583.82,0.34257134]
[1743945725560,0.57819335,584.93,583.83,0.28301849]
[1743945725861,0.57819335,584.92,583.83,0.28301849]
[1743945726060,0.57819335,584.91,583.83,0.28301849]
[1743945726260,0.57819335,584.94,583.83,0.28301849]
[1743945726461,0.57819335,584.93,583.83,0.28301849]
[1743945726757,0.57819335,584.92,583.83,0.28301849]
[1743945726960,0.57819335,584.91,583.83,0.28301849]
[1743945727161,0.57819335,584.92,583.83,0.28301849]
[1743945727861,0.57819335,584.91,583.83,0.28301849]
[1743945728061,0.57819335,584.92,583.83,0.28301849]
[1743945728360,0.29770816,584.93,583.83,0.28301849]
[1743945728555,0.57819335,584.92,583.83,0.28301849]
[1743945728760,0.29770816,584.93,583.83,0.28301849]
[1743945728961,0.87590151,584.93,583.83,0.28301849]
[1743945729156,0.29770816,584.93,583.83,0.28301849]
[1743945729555,0.29770816,584.93,583.82,0.34257134]
[1743945729760,0.29770816,584.93,583.83,0.28301953]
[1743945730157,0.29770816,584.93,583.82,0.34257134]
[1743945730361,0.29770816,584.93,583.83,0.2830246]
[1743945731362,0.29770816,584.93,583.84,0.28303543]
[1743945731557,0.34190956,584.95,583.83,0.28303543]
[1743945731758,0.34190956,584.95,583.84,0.28303543]
[1743945731961,0.34190956,584.95,583.83,0.28303543]
[1743945732257,0.34190956,584.95,583.84,0.28303543]
[1743945732458,0.34190956,584.95,583.83,0.28303543]
[1743945732660,0.34190956,584.95,583.84,0.28303543]
[1743945732863,0.29770689,584.94,583.82,0.34257134]
[1743945733064,0.29770689,584.94,583.83,0.28302942]
[1743945734564,0.34190956,584.95,583.83,0.28302942]
[1743945734758,0.2977209,584.93,583.83,0.28302942]
[1743945737966,0.57585666,584.92,583.83,0.28302942]
[1743945738164,0.57585666,584.91,583.83,0.28302942]
[1743945738466,0.57585666,584.9,583.83,0.28302942]
[1743945738669,0.91780129,584.89,583.83,0.28302942]
[1743945738865,0.91780714,584.88,583.83,0.28302942]
[1743945739068,0.34195633,584.87,583.83,0.28302942]
[1743945739269,0.57532067,584.86,583.83,0.28302942]
[1743945739470,0.91728869,584.85,583.83,0.28302942]
[1743945739669,0.34197387,584.84,583.83,0.28302942]
[1743945741371,0.34197387,584.84,583.82,0.34257134]
[1743945741969,0.34197387,584.84,583.83,0.28312389]
[1743945742974,0.34197387,584.84,583.82,0.34257134]
[1743945743174,0.34197387,584.84,583.83,0.2831228]
[1743945743475,0.34197387,584.84,583.84,0.28312314]
[1743945743675,0.34197387,584.84,583.83,0.28312314]
[1743945743973,0.34197387,584.84,583.84,0.28312314]
[1743945744172,0.34197387,584.84,583.85,0.28312314]
[1743945744373,0.34197387,584.84,583.83,0.28312314]
[1743945744574,0.34197387,584.84,583.84,0.28312314]
[1743945744875,0.29775146,584.83,583.85,0.28312993]
[1743945745074,0.34198556,584.82,583.83,0.28312993]
[1743945746873,0.57396703,584.81,583.19,1.27902258]
[1743945747073,0.91596429,584.8,583.21,0.34292964]
[1743945747273,0.91597014,584.79,583.22,0.28320757]
[1743945747470,0.34200311,584.79,583.24,0.342912]
[1743945747673,0.57396703,584.78,583.25,0.28320757]
[1743945747873,0.8718676,584.78,583.25,0.28320757]
[1743945748275,0.29790057,584.78,583.25,0.28320757]